bitfinex-derivatives/quotes_SOLF0:USTF0_20250625
["timestamp","ask_amount","ask_price","bid_price","bid_amount"]
[1750830202462,34.18,145.6,145.52,34.18]
[1750830202663,34.18,145.6,145.56,2.18217816]
[1750830202861,34.18,145.6,145.52,34.18]
[1750830202862,34.18,145.6,145.57,2.18217816]
[1750830203267,34.18,145.6,145.58,6.8655]
[1750830203471,2.18217816,145.59,145.55,2.18217816]
[1750830203779,2.18217816,145.56,145.53,2.18217816]
[1750830204069,2.18217816,145.54,145.5,2.18217816]
[1750830204256,6.8675,145.54,145.49,34.16]
[1750830204462,34.16,145.56,145.43,2.4297]
[1750830204463,3.39836561,145.53,145.46,37.55836561]
[1750830204962,3.39836561,145.54,145.46,37.55836561]
[1750830205559,34.16,145.56,145.46,37.55836561]
[1750830205770,3.39836561,145.54,145.46,37.55836561]
[1750830206274,10.26586561,145.54,145.5,6.869]
[1750830206570,3.39836561,145.54,145.46,37.55836561]
[1750830206767,6.8682,145.53,145.49,6.8694]
[1750830206960,3.39836561,145.54,145.46,37.55836561]
[1750830207162,34.16,145.56,145.46,37.55836561]
[1750830207363,6.8677,145.54,145.46,37.55836561]
[1750830207571,10.26606561,145.54,145.46,37.55836561]
[1750830208467,10.26606561,145.54,145.49,6.8694]
[1750830208672,10.26606561,145.54,145.46,37.55836561]
[1750830208970,10.26606561,145.54,145.49,6.8693]
[1750830209177,6.8679,145.53,145.49,6.8693]
[1750830210374,6.8679,145.53,145.5,6.8693]
[1750830210875,3.39836561,145.54,145.49,6.8697]
[1750830211966,6.8679,145.53,145.49,6.8697]
[1750830212372,6.8679,145.53,145.5,6.8693]
[1750830214376,6.8679,145.53,145.49,6.8696]
[1750830215376,6.8679,145.53,145.5,6.8693]
[1750830217177,6.8679,145.53,145.49,6.8696]
[1750830218279,6.8679,145.53,145.5,6.8693]
[1750830219574,10.2664002,145.54,145.46,37.5589002]
[1750830219769,3.3989002,145.54,145.46,37.5589002]
[1750830220076,3.3989002,145.54,145.46,34.16]
[1750830220277,35.12,145.55,145.48,3.3989002]
[1750830220672,6.8679,145.54,145.5,6.869]
[1750830220870,6.8679,145.54,145.48,3.3989002]
[1750830221183,6.8679,145.54,145.5,6.8688]
[1750830221375,6.8679,145.54,145.48,3.3989002]
[1750830221772,6.8679,145.54,145.51,6.8685]
[1750830222371,38.5189002,145.55,145.49,6.8694]
[1750830223881,35.12,145.55,145.49,6.8694]
[1750830224076,3.3989002,145.54,145.49,6.8694]
[1750830224283,3.3989002,145.52,145.43,10.4129002]
[1750830224588,600.362,145.56,145.41,92.28445162]
[1750830224589,3.3989002,145.5,145.41,92.28445162]
[1750830224787,41.9899,145.49,145.46,6.8708]
[1750830225178,41.9899,145.49,145.42,3.40093896]
[1750830225179,6.8703,145.48,145.42,3.40093896]
[1750830225481,3.40093896,145.48,145.41,35.12]
[1750830225883,6.8712,145.46,145.39,3.40093896]
[1750830226881,6.8712,145.46,145.43,6.8725]
[1750830227376,3.40093896,145.48,145.39,65.40093896]
[1750830227581,3.40093896,145.48,145.39,3.40093896]
[1750830227783,6.8709,145.47,145.39,3.40093896]
[1750830227983,6.8709,145.47,145.43,6.8723]
[1750830231484,6.8709,145.47,145.44,6.872]
[1750830233290,10.27133896,145.48,145.45,6.8716]
[1750830233477,35.12,145.49,145.41,3.40116996]
[1750830233682,35.12,145.49,145.43,3.40116996]
[1750830234290,35.12,145.49,145.48,6.8702]
[1750830237882,35.12,145.49,145.43,2.2079]
[1750830238187,41.9901,145.49,145.42,35.14]
[1750830238493,41.9901,145.49,145.46,6.8711]
[1750830239491,3.39996115,145.48,145.44,6.8721]
[1750830239687,3.39996115,145.46,145.4,3.39996115]
[1750830239893,3.39996115,145.46,145.39,35.14]
[1750830241693,3.39996115,145.47,145.4,3.39996115]
[1750830242490,10.27086115,145.47,145.44,6.8718]
[1750830247507,10.27086115,145.47,145.39,35.14]
[1750830247508,3.39996115,145.47,145.39,35.14]
[1750830247706,3.4028688,145.46,145.39,35.14]
[1750830247898,38.40302512,145.45,145.39,35.14]
[1750830248303,38.40302512,145.45,145.38,7.152]
[1750830248810,45.27492512,145.45,145.41,6.8732]
[1750830249401,45.27492512,145.45,145.38,7.152]
[1750830249814,38.40302512,145.45,145.38,7.152]
[1750830250493,45.27482512,145.45,145.38,7.152]
[1750830251600,45.27482512,145.45,145.41,6.8732]
[1750830252300,6.8721,145.44,145.41,6.8732]
[1750830254804,45.27482512,145.45,145.38,7.152]
[1750830254997,45.2747337,145.45,145.38,7.152]
[1750830256010,45.2747337,145.45,145.41,6.8732]
[1750830256308,6.8722,145.44,145.41,6.8732]
[1750830258208,3.4029337,145.44,145.35,3.4029337]
[1750830258403,3.40434555,145.42,145.34,119.8507474]
[1750830258812,10.27744555,145.42,145.39,6.8742]
[1750830259805,6.8735,145.41,145.38,6.8748]
[1750830260005,41.8735,145.41,145.38,6.8748]
[1750830260803,6.8742,145.4,145.37,6.8754]
[1750830267022,38.40434555,145.41,145.38,6.8749]
[1750830268223,45.27814555,145.41,145.38,6.8749]
[1750830274228,41.8738,145.41,145.38,6.8749]
[1750830274437,6.874,145.4,145.38,6.8749]
[1750830274824,6.874,145.4,145.37,6.8752]
[1750830275323,6.874,145.4,145.35,8.52957134]
[1750830275324,6.8745,145.39,145.35,6.876]
[1750830275525,6.8745,145.39,145.33,8.52957134]
[1750830275733,6.8752,145.38,145.33,8.52957134]
[1750830275928,10.28040781,145.38,145.33,8.52957134]
[1750830276128,10.28040781,145.38,145.35,6.8761]
[1750830276538,41.7555,145.37,145.32,8.52957134]
[1750830276834,34.88,145.37,145.33,6.877]
[1750830277138,3.40705496,145.36,145.33,6.877]
[1750830277323,10.28315496,145.36,145.33,6.877]
[1750830277631,3.40705496,145.36,145.3,15.24297134]
[1750830277833,10.28425496,145.34,145.3,8.52957134]
[1750830278036,3.40705496,145.34,145.29,8.52957134]
[1750830278240,34.88,145.33,145.28,8.52957134]
[1750830279035,37.1211,145.36,145.29,11.9366263]
[1750830279333,34.88,145.36,145.3,8.52957134]
[1750830280628,34.88,145.36,145.34,6.8768]
[1750830284742,34.88,145.36,145.35,6.8764]
[1750830285243,34.88,145.36,145.34,6.8766]
[1750830286750,34.88,145.36,145.35,6.8764]
[1750830288443,34.88,145.36,145.34,6.8766]
[1750830289046,41.756,145.36,145.33,6.8771]
[1750830289345,34.88,145.36,145.3,8.52957134]
[1750830289541,3.40705496,145.35,145.3,8.52957134]
[1750830290033,3.40705496,145.35,145.29,43.40957134]
[1750830290232,3.40705496,145.35,145.29,8.52957134]
[1750830290938,3.40705496,145.35,145.28,8.52957134]
[1750830291144,6.8771,145.34,145.31,6.878]
[1750830292235,6.8774,145.33,145.3,6.8785]
[1750830292841,6.877,145.34,145.31,6.8781]
[1750830293542,6.8773,145.33,145.3,6.8785]
[1750830294344,6.8771,145.34,145.3,6.8785]
[1750830294545,3.40705496,145.35,145.3,6.8785]
[1750830295350,6.8774,145.33,145.3,6.8785]
[1750830301248,3.40705496,145.33,145.28,8.52957134]
[1750830301459,3.40705496,145.31,145.27,8.52957134]
[1750830301648,38.30705496,145.31,145.26,10.78197134]
[1750830301849,38.30705496,145.31,145.26,2.2524]
[1750830302550,6.879,145.3,145.27,6.8798]
[1750830302863,38.30705496,145.31,145.27,6.8798]
[1750830303055,45.18555496,145.31,145.28,6.8795]
[1750830303652,38.30705496,145.31,145.29,6.8791]
[1750830306855,45.18535496,145.31,145.28,6.8795]
[1750830307263,45.18535496,145.31,145.25,2.3951]
[1750830307564,38.30705496,145.31,145.29,6.8792]
[1750830308263,38.30705496,145.31,145.3,6.8787]
[1750830308857,34.9,145.31,145.3,6.8787]
[1750830309961,34.9,145.31,145.25,14.3317263]
[1750830310167,45.18565496,145.31,145.25,2.3951]
[1750830310668,45.18565496,145.31,145.28,6.8794]
[1750830311469,38.30705496,145.31,145.29,6.8792]
[1750830311665,38.30705496,145.31,145.24,8.52957134]
[1750830311863,34.9,145.31,145.3,6.8787]
[1750830312364,34.72,145.35,145.29,3.40705496]
[1750830312563,38.12705496,145.35,145.27,46.6566263]
[1750830312963,3.40705496,145.33,145.27,38.12705496]
[1750830313970,10.28445496,145.33,145.3,6.8785]
[1750830317172,3.40705496,145.33,145.31,6.8782]
[1750830318472,3.40705496,145.33,145.3,6.8786]
[1750830320276,10.28435496,145.33,145.3,6.8786]
[1750830321472,3.40705496,145.33,145.27,8.52957134]
[1750830321677,7.72250203,145.33,145.25,11.9366263]
[1750830321878,3.40705496,145.33,145.25,11.9366263]
[1750830322177,10.28535496,145.31,145.28,6.8794]
[1750830322380,45.00535496,145.31,145.28,6.8794]
[1750830323283,6.879,145.3,145.27,6.8799]
[1750830324278,45.00555496,145.31,145.28,6.8796]
[1750830325176,6.8787,145.3,145.28,6.8796]
[1750830325371,38.12705496,145.31,145.28,6.8796]
[1750830325775,45.00565496,145.31,145.28,6.8796]
[1750830327477,41.5986,145.31,145.28,6.8796]
[1750830327686,34.72,145.31,145.3,6.8787]
[1750830327885,38.12705496,145.34,145.27,3.40705496]
[1750830328075,49.33384119,145.34,145.31,6.8782]
[1750830328277,45.00415496,145.34,145.31,6.8782]
[1750830328687,49.33461302,145.34,145.31,6.8782]
[1750830328888,45.00415496,145.34,145.31,6.8782]
[1750830329291,34.72,145.37,145.29,11.9366263]
[1750830329488,39.05349355,145.37,145.29,11.9366263]
[1750830329681,39.05349355,145.37,145.31,3.40705496]
[1750830329882,39.05349355,145.37,145.36,6.8759]
[1750830330182,34.72,145.37,145.36,6.8759]
[1750830330790,34.72,145.37,145.35,6.8762]
[1750830331186,34.72,145.37,145.31,11.9366263]
[1750830331381,34.72,145.37,145.36,6.8759]
[1750830334389,34.72,145.37,145.35,6.876]
[1750830335492,34.72,145.37,145.36,6.8759]
[1750830335894,34.72,145.37,145.32,8.52957134]
[1750830336392,34.72,145.37,145.35,6.8761]
[1750830336594,34.72,145.37,145.32,8.52957134]
[1750830336790,34.72,145.37,145.32,10.95807134]
[1750830336992,34.72,145.37,145.36,6.8759]
[1750830337389,4.35324813,145.39,145.36,6.8759]
[1750830337695,4.35324813,145.39,145.32,15.55787134]
[1750830337696,37.94705496,145.4,145.34,8.52957134]
[1750830337893,42.30026091,145.4,145.33,8.52957134]
[1750830338087,42.30026091,145.4,145.37,6.8754]
[1750830338682,37.94705496,145.4,145.37,6.8754]
[1750830338882,44.82145496,145.4,145.37,6.8754]
[1750830339089,44.82145496,145.4,145.36,6.8757]
[1750830339595,6.8745,145.39,145.36,6.8757]
[1750830339996,34.54,145.4,145.37,6.8754]
[1750830341288,41.4142,145.4,145.37,6.8754]
[1750830344303,41.4142,145.4,145.33,8.52957134]
[1750830346303,41.4142,145.4,145.37,6.875]
[1750830350000,41.4142,145.4,145.33,8.52957134]
[1750830350799,41.4142,145.4,145.37,6.875]
[1750830351000,41.4142,145.4,145.33,8.52957134]
[1750830351805,34.54,145.4,145.38,6.8747]
[1750830352201,34.54,145.4,145.34,3.40705496]
[1750830352397,37.94705496,145.43,145.36,3.40705496]
[1750830352601,37.94705496,145.43,145.36,37.94705496]
[1750830353309,44.81985496,145.43,145.4,6.8736]
[1750830359008,37.94705496,145.43,145.36,34.54]
[1750830359205,37.94705496,145.43,145.32,33.57745702]
[1750830359206,3.40705496,145.39,145.32,53.4849263]
[1750830359507,37.92705496,145.39,145.32,44.95535496]
[1750830359807,6.8753,145.38,145.32,41.5483]
[1750830360006,37.92705496,145.39,145.32,36.9485]
[1750830360314,44.80175496,145.39,145.36,6.8756]
[1750830360810,34.52,145.39,145.34,3.40705496]
[1750830361014,136.44705496,145.42,145.34,3.40705496]
[1750830361015,37.92705496,145.42,145.34,3.40705496]
[1750830361407,44.80035496,145.42,145.39,6.874]
[1750830362106,34.52,145.42,145.36,37.92705496]
[1750830362304,97.49144343,145.44,145.36,46.4566263]
[1750830362509,97.49144343,145.44,145.36,37.92705496]
[1750830362703,3.40705496,145.43,145.36,37.92705496]
[1750830363099,3.40705496,145.43,145.36,46.4566263]
[1750830363709,3.40705496,145.43,145.41,6.8733]
[1750830363912,3.40705496,145.43,145.36,46.4566263]
[1750830364317,10.27975496,145.43,145.4,6.8738]
[1750830364617,3.40705496,145.43,145.36,37.92705496]
[1750830365506,6.8733,145.42,145.39,6.8742]
[1750830365814,6.8733,145.42,145.36,37.92705496]
[1750830366012,3.40705496,145.43,145.36,37.92705496]
[1750830366213,10.27985496,145.43,145.4,6.8738]
[1750830366608,3.40705496,145.43,145.4,6.8738]
[1750830367711,10.27975496,145.43,145.4,6.8738]
[1750830367911,3.40705496,145.43,145.41,6.8733]
[1750830369214,3.40705496,145.43,145.4,6.8738]
[1750830369215,10.27975496,145.43,145.4,6.8738]
[1750830369514,107.77069839,145.44,145.41,6.8732]
[1750830374518,97.49144343,145.44,145.42,6.873]
[1750830375217,639.01885496,145.45,145.38,11.9366263]
[1750830375218,632.14705496,145.45,145.43,6.8726]
[1750830375421,3.40705496,145.47,145.4,3.40705496]
[1750830375722,6.8712,145.46,145.4,3.40705496]
[1750830375912,4.36006118,145.47,145.4,3.40705496]
[1750830376316,11.23096118,145.47,145.44,6.8718]
[1750830376521,11.23096118,145.47,145.4,37.88705496]
[1750830376820,11.23096118,145.47,145.44,6.8717]
[1750830377512,11.23096118,145.47,145.45,6.8715]
[1750830377712,4.36006118,145.47,145.4,46.4166263]
[1750830378113,4.36006118,145.47,145.45,6.8713]
[1750830379018,11.23086118,145.47,145.44,6.872]
[1750830379221,6.8708,145.47,145.44,6.872]
[1750830379428,11.23409782,145.47,145.44,6.872]
[1750830380318,4.36329782,145.47,145.45,6.8715]
[1750830380524,44.75745496,145.48,145.45,6.8715]
[1750830380726,4.36459784,145.47,145.45,6.8715]
[1750830380923,44.75745496,145.48,145.45,6.8715]
[1750830381119,4.36459784,145.47,145.45,6.8715]
[1750830381322,44.75745496,145.48,145.45,6.8715]
[1750830381625,4.36459787,145.47,145.45,6.8715]
[1750830381819,37.88705496,145.48,145.46,6.8711]
[1750830382019,34.48,145.48,145.42,3.40705496]
[1750830382219,37.88705496,145.51,145.44,3.40705496]
[1750830382423,4.36450699,145.5,145.44,37.88705496]
[1750830382623,49.12036195,145.51,145.44,37.88705496]
[1750830383116,44.75585496,145.51,145.44,46.4166263]
[1750830383324,44.75585496,145.51,145.45,8.52957134]
[1750830383525,44.75585496,145.51,145.44,46.4166263]
[1750830383820,37.88705496,145.51,145.44,46.4166263]
[1750830384020,37.88705496,145.51,145.49,6.8696]
[1750830384225,37.88705496,145.51,145.44,46.4166263]
[1750830384421,37.88705496,145.51,145.48,6.8702]
[1750830384622,44.75595496,145.51,145.48,6.8702]
[1750830385426,34.48,145.54,145.48,3.40705496]
[1750830385727,37.88705496,145.57,145.48,37.88705496]
[1750830385923,49.1114527,145.57,145.5,3.40705496]
[1750830386123,42.2452527,145.57,145.5,3.40705496]
[1750830386322,34.48,145.57,145.5,3.40705496]
[1750830386523,34.48,145.57,145.55,6.8666]
[1750830387621,34.48,145.57,145.54,6.8673]
[1750830387818,41.3463,145.57,145.54,6.8673]
[1750830388024,34.48,145.57,145.5,3.40705496]
[1750830388723,34.48,145.57,145.54,6.8669]
[1750830388926,34.48,145.57,145.5,3.40705496]
[1750830391629,41.3462,145.57,145.5,3.40705496]
[1750830394032,41.3462,145.57,145.54,6.8671]
[1750830394232,41.3462,145.57,145.5,3.40705496]
[1750830394430,34.48,145.57,145.5,3.40705496]
[1750830394626,1.19544494,145.66,145.54,3.40705496]
[1750830394834,6.8632,145.63,145.56,3.40705496]
[1750830395130,3.40705496,145.63,145.56,3.40705496]
[1750830395533,4.4602,145.64,145.58,3.40705496]
[1750830395732,4.4602,145.64,145.61,6.8637]
[1750830396633,4.4602,145.64,145.6,6.8642]
[1750830396826,11.3232,145.64,145.56,10.31505496]
[1750830398031,11.3232,145.64,145.61,6.8641]
[1750830398930,11.3232,145.64,145.56,10.31505496]
[1750830399128,4.4602,145.64,145.62,6.8636]
[1750830401738,11.3229,145.64,145.61,6.864]
[1750830401939,3.40705496,145.63,145.55,34.46]
[1750830402139,3.40705496,145.61,145.55,34.46]
[1750830402439,37.88705496,145.61,145.55,34.46]
[1750830402840,37.88705496,145.61,145.59,6.8648]
[1750830403138,37.88705496,145.61,145.55,34.46]
[1750830403535,44.75115496,145.61,145.58,6.8652]
[1750830408046,37.88705496,145.61,145.59,6.865]
[1750830408546,37.88705496,145.61,145.6,6.8646]
[1750830411154,37.88705496,145.61,145.59,6.8647]
[1750830411446,37.88705496,145.61,145.55,34.46]
[1750830413149,37.88705496,145.61,145.59,6.8646]
[1750830415049,37.88705496,145.61,145.6,6.8646]
[1750830415547,37.88705496,145.61,145.55,34.46]
[1750830415749,37.88705496,145.61,145.59,6.8648]
[1750830418843,34.48,145.61,145.59,6.8648]
[1750830421144,34.48,145.61,145.55,34.46]
[1750830422156,34.48,145.61,145.6,6.8646]
[1750830423760,38.9202,145.64,145.62,6.8636]
[1750830424361,50.21965069,145.64,145.61,6.8639]
[1750830424558,45.7831,145.64,145.61,6.8639]
[1750830424954,4.44587636,145.63,145.61,6.8639]
[1750830425253,45.7831,145.64,145.58,3.40705496]
[1750830425460,45.7831,145.64,145.62,6.8636]
[1750830425461,4.44588585,145.63,145.62,6.8636]
[1750830426754,45.7829,145.64,145.62,6.8636]
[1750830427664,34.46,145.64,145.63,6.8631]
[1750830427862,38.91287038,145.64,145.63,6.8631]
[1750830428449,38.91287038,145.64,145.62,6.8634]
[1750830428656,4.45287038,145.63,145.62,6.8634]
[1750830429762,41.3227,145.64,145.62,6.8634]
[1750830430062,4.4528757,145.63,145.62,6.8634]
[1750830434263,34.46,145.64,145.63,6.8631]
[1750830434468,38.92246692,145.64,145.63,6.8631]
[1750830434667,38.92246692,145.64,145.58,3.40705496]
[1750830434867,34.46,145.64,145.58,3.40705496]
[1750830435363,34.46,145.64,145.62,6.8633]
[1750830436365,41.3228,145.64,145.57,4.594]
[1750830436571,34.46,145.64,145.58,3.40705496]
[1750830436871,34.46,145.64,145.62,6.8633]
[1750830440275,36.63186181,145.64,145.62,6.8633]
[1750830440468,43.49456181,145.64,145.62,6.8633]
[1750830440666,2.17186181,145.63,145.62,6.8633]
[1750830441474,36.63186181,145.64,145.62,6.8633]
[1750830442576,36.63186181,145.64,145.63,6.8631]
[1750830442769,34.46,145.64,145.63,6.8631]
[1750830443163,36.55186181,145.67,145.65,6.862]
[1750830444477,34.38,145.67,145.65,6.862]
[1750830446373,34.38,145.67,145.66,6.8617]
[1750830446575,39.1706,145.7,145.63,3.39188977]
[1750830446777,34.36,145.7,145.63,3.39188977]
[1750830446976,41.2201,145.7,145.67,6.8609]
[1750830447274,41.2201,145.7,145.63,37.75188977]
[1750830447477,41.2201,145.7,145.67,6.8609]
[1750830448474,34.36,145.7,145.68,6.8607]
[1750830449181,41.2199,145.7,145.67,6.861]
[1750830449885,6.8605,145.69,145.66,6.8615]
[1750830450982,41.22,145.7,145.67,6.8612]
[1750830451379,41.22,145.7,145.63,37.75188977]
[1750830451882,34.36,145.7,145.68,6.8607]
[1750830452084,34.36,145.7,145.63,37.75188977]
[1750830452785,34.36,145.7,145.68,6.8605]
[1750830454286,34.36,145.73,145.63,34.36]
[1750830454492,34.36,145.73,145.67,3.39188977]
[1750830454691,37.75188977,145.73,145.65,3.39188977]
[1750830454891,6.8597,145.71,145.65,3.39188977]
[1750830455187,37.75188977,145.73,145.65,3.39188977]
[1750830455591,6.8593,145.72,145.65,3.39188977]
[1750830455978,6.8593,145.72,145.69,6.8599]
[1750830457599,6.8594,145.71,145.68,6.8606]
[1750830461795,6.8594,145.71,145.69,6.8603]
[1750830462093,6.8594,145.71,145.65,3.39188977]
[1750830463089,6.8594,145.71,145.68,6.8605]
[1750830464396,9.02910407,145.71,145.68,6.8605]
[1750830466397,9.02910407,145.71,145.69,6.8602]
[1750830473309,9.02910407,145.71,145.68,6.8604]
[1750830473809,9.02910407,145.71,145.69,6.8603]
[1750830478512,2.16970407,145.71,145.69,6.8603]
[1750830479119,9.02920407,145.71,145.68,6.8606]
[1750830480120,6.8595,145.71,145.68,6.8606]
[1750830480318,9.02920407,145.71,145.68,6.8606]
[1750830480507,2.16970407,145.71,145.69,6.8602]
[1750830480920,9.02980407,145.7,145.67,6.8609]
[1750830481119,2.16970407,145.69,145.65,2.16970407]
[1750830481307,2.16970407,145.7,145.66,2.16970407]
[1750830481512,9.02940407,145.71,145.66,2.16970407]
[1750830482011,9.02890407,145.72,145.69,6.8603]
[1750830483714,2.16970407,145.7,145.62,19.6441672]
[1750830483918,2.16970407,145.68,145.63,2.16970407]
[1750830484619,9.03050407,145.68,145.65,6.8619]
[1750830484812,2.16970407,145.66,145.62,6.9432]
[1750830485016,2.16970407,145.64,145.61,34.34]
[1750830485516,2.16970407,145.64,145.6,2.16970407]
[1750830486319,2.16970407,145.64,145.62,6.8632]
[1750830486824,2.16970407,145.64,145.63,6.8631]
[1750830487422,2.16970407,145.65,145.63,6.8631]
[1750830487819,2.16970407,145.65,145.62,6.8634]
[1750830488024,2.16970407,145.63,145.59,34.34]
[1750830488324,2.16970407,145.63,145.59,36.50970407]
[1750830488518,2.16970407,145.63,145.61,6.8641]
[1750830490313,2.16970407,145.64,145.62,6.8636]
[1750830491326,36.48970407,145.65,145.63,6.8631]
[1750830491813,36.48970407,145.65,145.62,6.8634]
[1750830492017,2.16970407,145.64,145.62,6.8634]
[1750830493824,2.16970407,145.63,145.62,6.8634]
[1750830494026,2.16970407,145.64,145.62,6.8634]
[1750830494321,37.71372317,145.65,145.59,34.34]
[1750830494722,44.57622317,145.65,145.6,6.8642]
[1750830494927,44.57622317,145.65,145.59,34.34]
[1750830495731,6.8629,145.64,145.59,34.34]
[1750830495933,37.71372317,145.65,145.57,10.49122317]
[1750830496317,44.57612317,145.65,145.62,6.8633]
[1750830497126,37.71372317,145.65,145.63,6.8631]
[1750830497328,34.32,145.65,145.59,3.39372317]
[1750830497825,34.32,145.65,145.63,6.8629]
[1750830502328,34.32,145.65,145.64,6.8627]
[1750830505225,37.73372317,145.68,145.65,6.8618]
[1750830505431,3.39372317,145.68,145.61,3.39372317]
[1750830505630,34.34,145.69,145.67,6.861]
[1750830505833,38.83388919,145.69,145.67,6.861]
[1750830506237,38.83388919,145.69,145.68,6.8608]
[1750830506637,34.34,145.69,145.68,6.8608]
[1750830506839,38.8346138,145.69,145.68,6.8608]
[1750830507133,45.7969,145.72,145.65,3.39372317]
[1750830507333,34.34,145.76,145.69,3.39372317]
[1750830507526,4.49451982,145.75,145.69,3.39372317]
[1750830507725,34.34,145.76,145.69,3.39372317]
[1750830507726,37.73372317,145.76,145.69,3.39372317]
[1750830507931,3.39372317,145.74,145.67,3.39372317]
[1750830508132,7.88811046,145.74,145.67,3.39372317]
[1750830508328,10.25192317,145.74,145.67,3.39372317]
[1750830508733,6.8582,145.74,145.67,3.39372317]
[1750830508934,10.25192317,145.74,145.67,3.39372317]
[1750830509346,10.25192317,145.74,145.7,6.8595]
[1750830510340,3.39372317,145.74,145.71,6.8593]
[1750830510645,3.39372317,145.74,145.67,3.39372317]
[1750830510844,3.39372317,145.74,145.72,6.8589]
[1750830511545,4.49222239,145.75,145.73,6.8584]
[1750830511845,44.59092317,145.76,145.73,6.8584]
[1750830512647,49.08162216,145.76,145.73,6.8584]
[1750830512845,4.49069899,145.75,145.73,6.8584]
[1750830513344,44.59092317,145.76,145.73,6.8584]
[1750830513640,34.34,145.76,145.74,6.8579]
[1750830513842,34.34,145.76,145.69,3.39372317]
[1750830514451,41.197,145.76,145.73,6.8584]
[1750830514745,34.34,145.76,145.69,3.39372317]
[1750830515142,41.1972,145.76,145.73,6.8583]
[1750830515347,44.59092317,145.76,145.73,6.8583]
[1750830516145,37.73372317,145.76,145.74,6.8579]
[1750830518841,37.73372317,145.76,145.69,3.39372317]
[1750830520051,34.34,145.76,145.74,6.8577]
[1750830520350,34.34,145.76,145.69,3.39372317]
[1750830520743,34.34,145.76,145.71,3.39372317]
[1750830521249,6.8565,145.78,145.75,6.8572]
[1750830522841,37.93372317,145.79,145.71,3.39372317]
[1750830523448,6.8563,145.78,145.75,6.8575]
[1750830524257,41.3958,145.79,145.71,3.39372317]
[1750830524457,44.78952317,145.79,145.71,3.39372317]
[1750830524859,44.78952317,145.79,145.76,6.8568]
[1750830527555,37.93372317,145.79,145.77,6.8564]
[1750830528149,44.78942317,145.79,145.76,6.8568]
[1750830528350,37.93372317,145.79,145.76,6.8568]
[1750830528756,44.78952317,145.79,145.77,6.8565]
[1750830529458,37.93372317,145.79,145.72,34.54]
[1750830530258,44.78952317,145.79,145.76,6.857]
[1750830531054,37.93372317,145.79,145.72,34.54]
[1750830532157,44.78962317,145.79,145.76,6.8567]
[1750830536956,44.78962317,145.79,145.73,3.39372317]
[1750830536957,34.54,145.79,145.77,6.8563]
[1750830537362,34.54,145.79,145.73,10.46112317]
[1750830537664,9.2046,145.81,145.78,6.8561]
[1750830538066,6.8552,145.8,145.78,6.8561]
[1750830538565,630.85372317,145.82,145.75,3.39372317]
[1750830539159,637.70832317,145.82,145.75,3.39372317]
[1750830539360,44.76832317,145.82,145.75,3.39372317]
[1750830539562,37.91372317,145.82,145.75,3.39372317]
[1750830539964,6.8551,145.81,145.75,3.39372317]
[1750830540360,6.8552,145.8,145.78,6.856]
[1750830540967,6.8552,145.8,145.77,6.8564]
[1750830542770,6.8556,145.79,145.77,6.8564]
[1750830543362,6.8553,145.8,145.77,6.8564]
[1750830543758,37.91372317,145.82,145.77,6.8564]
[1750830544462,42.76708875,145.82,145.77,6.8564]
[1750830544667,3.39372317,145.8,145.71,3.39372317]
[1750830544871,3.39372317,145.8,145.72,34.52]
[1750830545172,6.8564,145.78,145.75,6.8573]
[1750830545369,10.25012317,145.78,145.75,6.8573]
[1750830546068,3.39372317,145.76,145.69,6.7104]
[1750830546270,3.39372317,145.74,145.69,6.7104]
[1750830547367,3.39372317,145.74,145.69,2.2119]
[1750830547665,3.39372317,145.74,145.67,37.91372317]
[1750830547866,43.89081842,145.76,145.67,34.52]
[1750830548070,10.25152317,145.75,145.72,6.8589]
[1750830548778,6.858,145.74,145.71,6.8592]
[1750830548978,3.39372317,145.73,145.67,34.52]
[1750830550971,6.8589,145.72,145.69,6.8601]
[1750830551575,10.25232317,145.73,145.7,6.8597]
[1750830552383,10.25232317,145.73,145.69,6.8602]
[1750830552579,6.859,145.72,145.69,6.8602]
[1750830552977,41.579,145.72,145.69,6.8602]